fUST/lending_fUST_20240129
["ID","MTS","AMOUNT","RATE_DAILY","PERIOD"]
[312955419,1706532639087,-1919.94940634,0.00024689,2]
[312955420,1706532639096,-338.67994931,0.00024689,2]
[312955421,1706532639105,-2230.58031028,0.00024747,2]
[312955422,1706532639114,-155.01705188,0.00024777,2]
[312955423,1706532639123,-155.08158631,0.00024778,2]
[312955424,1706532639132,-156.34873008,0.00024787,2]
[312955425,1706532639142,-1993.49479484,0.00024788,2]
[312955426,1706532639153,-301.0,0.000248,2]
[312955427,1706532639162,-151.0,0.00024858,2]
[312955428,1706532639174,-11614.46648787,0.00024858,2]
[312955463,1706532641601,-306.00632162,0.00024737,3]
[312955464,1706532641674,-3988.35104837,0.00024737,3]
[312955465,1706532641685,-3465.98108791,0.00024737,3]
[312955539,1706533774281,200.0,0.00021756,7]
[312955617,1706533834759,-155.12384593,0.00019779,2]
[312955619,1706533834768,-2544.2242061,0.00019779,2]
[312955658,1706533841764,-3606.55574144,0.00019779,2]
[312955659,1706533841773,-5665.19199485,0.0001978,2]
[312955687,1706533844115,-1588.0722528,0.0001978,2]
[312955688,1706533844174,-2018.48348864,0.0001978,2]
[312955689,1706533844183,-505.9073818,0.00021,2]
[312955690,1706533844192,-11800.2726004,0.00021008,2]
[312955691,1706533844202,-166.857692,0.00021187,2]
[312955692,1706533844211,-1015.09096361,0.00021756,2]
[312955693,1706533844221,-155.0,0.00022495,4]
[312955694,1706533844230,-155.0,0.00022649,2]
[312955695,1706533844240,-24765.86305245,0.00022651,2]
[312955711,1706533846771,-472.55486556,0.00022651,2]
[312955789,1706535031835,-155.12384593,0.00019764,2]
[312955791,1706535031844,-523.46745706,0.00019765,2]
[312955793,1706535031854,-6150.77994754,0.00019778,2]
[312955795,1706535031863,-2375.9151164,0.00019779,2]
[312955818,1706535038842,-3709.27424486,0.00019779,2]
[312955819,1706535038854,-1680.48935352,0.00019779,2]
[312955820,1706535038863,-768.29452254,0.00020558,2]
[312955821,1706535038875,-956.38239828,0.00020558,2]
[312955822,1706535038887,-2372.89810611,0.00020558,2]
[312955823,1706535038902,-1766.78114445,0.00020558,2]
[312955853,1706535044016,-6008.05771322,0.00020558,2]
[312955854,1706535044026,-5000.0,0.0002197,5]
[312955855,1706535044034,-978.75061234,0.0002265,2]
[312955856,1706535044043,-262.54949426,0.0002265,2]
[312955857,1706535044053,-636.5761809,0.00022651,2]
[312955858,1706535044062,-508.2017173,0.00022651,2]
[312955859,1706535044072,-285.93193234,0.00022651,2]
[312955860,1706535044082,-3196.26606373,0.00022651,2]
[312955861,1706535044091,-964.4362348,0.00022651,2]
[312955862,1706535044100,-3157.9654213,0.00022651,2]
[312955863,1706535044110,-5000.0,0.00022651,2]
[312955864,1706535044119,-1293.74970495,0.00022651,2]
[312955865,1706535044129,-300.0,0.000227,10]
[312955866,1706535044138,-9952.16785935,0.00023,2]
[312955867,1706535044147,-803.0,0.000234,2]
[312955868,1706535044157,-9138.49084877,0.00024,2]
[312955869,1706535044167,-300.0,0.000242,11]
[312955870,1706535044176,-296.35574279,0.00024298,2]
[312955871,1706535044185,-163.72490286,0.00024298,2]
[312955872,1706535044194,-153.0,0.00024384,2]
[312955873,1706535044203,-153.0,0.00024384,2]
[312955874,1706535044213,-153.0,0.00024384,2]
[312955875,1706535044222,-153.0,0.00024384,2]
[312955876,1706535044231,-153.0,0.00024384,2]
[312955877,1706535044240,-312.9744068,0.00024384,2]
[312955878,1706535044250,-1095.0375899,0.00024585,2]
[312955879,1706535044259,-1000.0,0.00024621,2]
[312955880,1706535044268,-1000.0,0.00024628,2]
[312955881,1706535044277,-1000.0,0.0002463,2]
[312955882,1706535044286,-1000.0,0.00024638,2]
[312955883,1706535044296,-273.49351713,0.0002464,2]
[312955884,1706535044305,-685.217412,0.00024658,2]
[312955885,1706535044314,-151.0,0.0002466,2]
[312955886,1706535044324,-265.599781,0.0002469,2]
[312955887,1706535044333,-9501.14,0.0002469,3]
[312955888,1706535044342,-452.97942722,0.00024697,2]
[312955889,1706535044351,-2106.19648268,0.00024698,2]
[312955890,1706535044361,-223.48892676,0.00024699,2]
[312955891,1706535044370,-16428.07575022,0.000247,2]
[312955892,1706535044379,-338.67994931,0.00024737,2]
[312955893,1706535044389,-652.36942683,0.00024737,2]
[312955894,1706535044398,-167.78747151,0.00024737,2]
[312955895,1706535044407,-1000.0,0.00024739,2]
[312955896,1706535044416,-8586.85148029,0.00024798,2]
[312955897,1706535044426,-164.689635,0.000248,2]
[312955898,1706535044435,-1000.0,0.00024846,2]
[312955899,1706535044444,-57.18651084,0.00024888,2]
[312955900,1706535044453,-168.97979744,0.00024888,2]
[312955901,1706535044465,-7818.02905683,0.00024889,2]
[312955902,1706535044475,-213.595546,0.00024895,2]
[312955903,1706535044484,-247.86563425,0.00024895,2]
[312955904,1706535044493,-577.69064989,0.00024895,2]
[312955905,1706535044503,-480.24994124,0.00024895,2]
[312955906,1706535044512,-383.35883482,0.00024896,2]
[312955907,1706535044521,-303.48339143,0.00024896,2]
[312955908,1706535044530,-11524.94982757,0.00024896,2]
[312955909,1706535044539,-1312.84096512,0.00024896,2]
[312955910,1706535044551,-442.61150072,0.00024896,2]
[312955911,1706535044560,-425.39839666,0.00024896,2]
[312955912,1706535044569,-528.83305179,0.00024897,2]
[312955913,1706535044578,-285.69196284,0.00024897,2]
[312955914,1706535044587,-352.69528326,0.00024897,2]
[312955915,1706535044597,-450.31116596,0.00024897,2]
[312955916,1706535044606,-268.95614479,0.00024897,2]
[312955917,1706535044615,-1001.56411975,0.00024897,2]
[312955918,1706535044624,-6725.4953228,0.00024898,2]
[312955919,1706535044636,-983.27610198,0.00024898,2]
[312955953,1706536232060,-1199.58942855,0.00022613,2]
[312955954,1706536232070,-3204.55635267,0.00022614,2]
[312955955,1706536232080,-155.0,0.0002265,2]
[312955956,1706536232088,-1099.73274648,0.00022651,2]
[312956005,1706536238142,-516.85892022,0.00022651,2]
[312956006,1706536238151,-241.1090587,0.00022651,2]
[312956007,1706536238160,-861.82407294,0.00022651,2]
[312956008,1706536238169,-300.0,0.000227,10]
[312956009,1706536238178,-150.0,0.0002373,2]
[312956010,1706536238187,-9952.16785935,0.00023999,2]
[312956011,1706536238196,-9138.49084877,0.00024,2]
[312956012,1706536238205,-157.4629048,0.00024014,2]
[312956013,1706536238213,-545.69804205,0.00024183,2]
[312956014,1706536238223,-300.0,0.000242,11]
[312956015,1706536238233,-153.0,0.00024384,2]
[312956016,1706536238243,-153.0,0.00024384,2]
[312956017,1706536238252,-156.3165539,0.00024384,2]
[312956018,1706536238261,-155.4715046,0.00024384,2]
[312956019,1706536238271,-154.3196117,0.00024384,2]
[312956020,1706536238281,-199.5341538,0.00024384,2]
[312956021,1706536238290,-153.0,0.00024384,2]
[312956022,1706536238299,-153.0,0.00024384,2]
[312956023,1706536238308,-199.5341538,0.00024384,2]
[312956024,1706536238317,-153.0,0.00024384,2]
[312956025,1706536238327,-153.0,0.00024384,2]
[312956026,1706536238339,-153.0,0.00024384,2]
[312956027,1706536238350,-199.5341538,0.00024384,2]
[312956028,1706536238359,-153.0,0.00024384,2]
[312956029,1706536238370,-153.0,0.000244,2]
[312956030,1706536238380,-153.0,0.000244,2]
[312956031,1706536238389,-199.5341538,0.000244,2]
[312956032,1706536238398,-153.0,0.000244,2]
[312956033,1706536238409,-153.0,0.000244,2]
[312956034,1706536238418,-199.5341538,0.000244,2]
[312956035,1706536238428,-153.0,0.000244,2]
[312956036,1706536238437,-153.0,0.000244,2]
[312956037,1706536238446,-153.0,0.000244,2]
[312956038,1706536238455,-153.0,0.000244,2]
[312956039,1706536238464,-157.182342,0.000244,2]
[312956040,1706536238476,-308.8657362,0.000244,2]
[312956041,1706536238486,-398.4202693,0.000244,2]
[312956042,1706536238495,-616.69567,0.00024658,2]
[312956043,1706536238505,-3990.91,0.00024887,3]
[312956044,1706536238514,-7610.41,0.00024887,3]
[312956045,1706536238523,-5277.34228971,0.00024887,3]
[312956061,1706536241236,-1064.66771029,0.00024887,3]
[312956063,1706536241246,-2546.25241194,0.00024887,3]
[312956134,1706536246107,-284.30857523,0.00024887,3]
[312956153,1706537033503,155.0,0.00016285,3]
[312956156,1706537174516,155.0,0.0001628,3]
[312956158,1706537194535,155.0,0.00014655,2]
[312956160,1706537212532,155.0,0.00014655,2]
[312956161,1706537230560,155.0,0.0001465,2]
[312956162,1706537252546,155.0,0.0001465,2]
[312956163,1706537268539,155.0,0.0001465,2]
[312956164,1706537268935,683.16231896,0.0001465,2]
[312956165,1706537274896,1110.88845161,0.0001465,2]
[312956166,1706537277128,938.81479124,0.0001465,2]
[312956169,1706537286549,155.0,0.00014649,2]
[312956170,1706537286953,833.26341668,0.0001465,2]
[312956171,1706537290938,1145.12364548,0.0001465,2]
[312956172,1706537293157,689.71191562,0.0001465,2]
[312956173,1706537293833,10272.1500177,0.00015283,2]
[312956174,1706537304546,155.0,0.00014649,2]
[312956175,1706537322568,270.942689,0.00015283,2]
[312956177,1706537324648,155.0,0.00014649,2]
[312956178,1706537337272,244.5947501,0.00015283,2]
[312956182,1706537346577,155.0,0.00014649,2]
[312956183,1706537360560,155.0,0.00014649,2]
[312956184,1706537376559,155.0,0.00014649,2]
[312956185,1706537379939,152.04407374,0.00014576,2]
[312956186,1706537396559,155.0,0.00014649,2]
[312956190,1706537418564,155.0,0.00014649,2]
[312956215,1706537432175,-500.0,0.0001627,2]
[312956217,1706537432185,-523.46745706,0.00016271,2]
[312956219,1706537432194,-3204.55635267,0.00016272,2]
[312956221,1706537432203,-1011.32991985,0.00016277,2]
[312956294,1706537434567,155.0,0.00014648,2]
[312956322,1706537439165,-5639.99000388,0.00016277,2]
[312956323,1706537439177,-479.56991045,0.00016277,2]
[312956359,1706537441448,-4985.68975427,0.00016277,2]
[312956361,1706537441644,-24888.79695439,0.00016277,2]
[312956362,1706537441654,-171.61976164,0.00016277,2]
[312956363,1706537441664,-18874.33454557,0.00016278,2]
[312956364,1706537441673,-5180.66250864,0.0001628,2]
[312956365,1706537441683,-9124.72285189,0.0001628,2]
[312956366,1706537441698,-56129.12141477,0.0001628,2]
[312956367,1706537441712,-88835.12424601,0.0001628,2]
[312956368,1706537442296,-34603.36269129,0.0001628,2]
[312956403,1706537443730,-10276.81744987,0.0001628,2]
[312956404,1706537443741,-85730.21161259,0.0001628,2]
[312956405,1706537443751,-156.99269702,0.00016283,2]
[312956406,1706537443761,-240.61520942,0.00016283,2]
[312956407,1706537443770,-911.33248735,0.00016284,2]
[312956408,1706537443779,-1369.47800467,0.00016284,2]
[312956409,1706537443789,-844.11192764,0.00016292,2]
[312956410,1706537443799,-2978.55808829,0.0001631,2]
[312956411,1706537443809,-24900.0,0.0001637,2]
[312956412,1706537443818,-977.283044,0.00016495,2]
[312956413,1706537443827,-151.0,0.000177,2]
[312956414,1706537443837,-151.0,0.00019121,2]
[312956415,1706537443846,-155.0,0.0002,2]
[312956416,1706537443856,-151.0,0.00020543,2]
[312956417,1706537443866,-151.0,0.00021964,2]
[312956418,1706537443875,-155.36175357,0.00022398,2]
[312956419,1706537443884,-533.37510912,0.00022498,5]
[312956420,1706537443894,-2031.31441699,0.00022651,2]
[312956421,1706537443904,-300.0,0.000227,10]
[312956422,1706537443913,-9952.16785935,0.00023,2]
[312956423,1706537443923,-1260.96531066,0.00023,2]
[312956424,1706537443933,-151.0,0.00023385,2]
[312956425,1706537443944,-9138.49084877,0.00024,2]
[312956426,1706537443953,-4696.13256894,0.00024148,5]
[312956427,1706537443963,-300.0,0.000242,11]
[312956428,1706537443973,-403.67355955,0.00024298,2]
[312956429,1706537443982,-254.0095678,0.00024298,2]
[312956430,1706537443993,-643.7518795,0.00024523,2]
[312956431,1706537444002,-15000.0,0.00024636,2]
[312956432,1706537444011,-1042.0,0.00024657,2]
[312956433,1706537444021,-555.026103,0.00024658,2]
[312956434,1706537444031,-151.0,0.00024806,2]
[312956435,1706537444040,-3196.26606373,0.00024887,2]
[312956436,1706537444049,-338.67994931,0.00024887,2]
[312956437,1706537444058,-1196.80135711,0.00024895,2]
[312956438,1706537444068,-181.11768672,0.00024895,2]
[312956439,1706537444077,-1583.7528565,0.00024895,2]
[312956440,1706537444087,-1623.8179522,0.00024896,2]
[312956441,1706537444096,-539.77508252,0.00024898,2]
[312956442,1706537444105,-270.36495321,0.00024898,2]
[312956443,1706537444114,-164.49311095,0.00024898,2]
[312956444,1706537444123,-155.00452043,0.00024898,2]
[312956445,1706537444132,-684.72334781,0.00024898,2]
[312956446,1706537444142,-346.8474865,0.000249,2]
[312956447,1706537444150,-104633.30280269,0.000249,2]
[312956448,1706537444159,-155.19647942,0.00024958,2]
[312956449,1706537444168,-2418.03212232,0.00024958,2]
[312956450,1706537444177,-214.23596749,0.00024959,2]
[312956451,1706537444186,-1298.26432283,0.00024959,2]
[312956452,1706537444195,-499.00501624,0.0002496,5]
[312956453,1706537444205,-240.65576795,0.00024995,2]
[312956454,1706537444215,-653.96802699,0.00024995,2]
[312956455,1706537444224,-500.0,0.00024996,2]
[312956456,1706537444233,-500.0,0.00024996,2]
[312956457,1706537444242,-500.0,0.00024996,2]
[312956458,1706537444251,-500.0,0.00024996,2]
[312956459,1706537444260,-500.0,0.00024996,2]
[312956460,1706537444269,-500.0,0.00024996,2]
[312956461,1706537444278,-500.0,0.00024996,2]
[312956462,1706537444287,-500.0,0.00024996,2]
[312956463,1706537444296,-500.0,0.00024996,2]
[312956464,1706537444305,-500.0,0.00024996,2]
[312956465,1706537444315,-514.44993856,0.00024996,2]
[312956466,1706537444324,-505.45394607,0.00024996,2]
[312956467,1706537444333,-500.0,0.00024996,2]
[312956468,1706537444342,-500.0,0.00024996,2]
[312956469,1706537444351,-500.0,0.00024996,2]
[312956470,1706537444360,-500.0,0.00024996,2]
[312956471,1706537444370,-500.0,0.00024996,2]
[312956472,1706537444379,-500.0,0.00024996,2]
[312956473,1706537444388,-500.0,0.00024996,2]
[312956474,1706537444398,-500.0,0.00024996,2]
[312956475,1706537444407,-500.0,0.00024996,2]
[312956476,1706537444416,-500.0,0.00024996,2]
[312956477,1706537444425,-500.0,0.00024996,2]
[312956478,1706537444434,-500.0,0.00024996,2]
[312956479,1706537444444,-500.0,0.00024996,2]
[312956480,1706537444453,-500.0,0.00024996,2]
[312956481,1706537444463,-500.0,0.00024996,2]
[312956482,1706537444472,-500.0,0.00024996,2]
[312956483,1706537444481,-500.0,0.00024996,2]
[312956484,1706537444490,-500.0,0.00024996,2]
[312956485,1706537444501,-500.0,0.00024996,2]
[312956486,1706537444510,-500.0,0.00024996,2]
[312956487,1706537444519,-500.0,0.00024996,2]
[312956488,1706537444528,-500.0,0.00024996,2]
[312956489,1706537444538,-500.0,0.00024996,2]
[312956490,1706537444546,-500.0,0.00024996,2]
[312956491,1706537444555,-500.0,0.00024996,2]
[312956492,1706537444564,-500.0,0.00024996,2]
[312956493,1706537444574,-500.0,0.00024996,2]
[312956494,1706537444582,-500.0,0.00024996,2]
[312956495,1706537444591,-500.0,0.00024996,2]
[312956496,1706537444600,-500.0,0.00024996,2]
[312956497,1706537444609,-500.0,0.00024996,2]
[312956498,1706537444618,-500.0,0.00024996,2]
[312956499,1706537444696,-500.0,0.00024996,2]
[312956500,1706537444706,-500.0,0.00024996,2]
[312956501,1706537444717,-500.0,0.00024996,2]
[312956502,1706537444728,-500.0,0.00024996,2]
[312956503,1706537444738,-455.30530047,0.00024996,2]
[312956504,1706537444748,-500.0,0.00024996,2]
[312956505,1706537444758,-500.0,0.00024996,2]
[312956506,1706537444767,-500.0,0.00024996,2]
[312956507,1706537444777,-500.0,0.00024996,2]
[312956508,1706537444786,-500.0,0.00024996,2]
[312956509,1706537444796,-500.0,0.00024996,2]
[312956510,1706537444806,-500.0,0.00024996,2]
[312956511,1706537444815,-500.0,0.00024996,2]
[312956512,1706537444825,-500.0,0.00024996,2]
[312956513,1706537444834,-500.0,0.00024996,2]
[312956514,1706537444843,-500.0,0.00024996,2]
[312956515,1706537444853,-500.0,0.00024996,2]
[312956516,1706537444862,-500.0,0.00024996,2]
[312956517,1706537444872,-500.0,0.00024996,2]
[312956518,1706537444881,-500.0,0.00024996,2]
[312956519,1706537444891,-500.0,0.00024996,2]
[312956520,1706537444901,-500.0,0.00024996,2]
[312956521,1706537444910,-500.0,0.00024996,2]
[312956522,1706537444920,-549.36191245,0.00024996,2]
[312956523,1706537444929,-500.0,0.00024996,2]
[312956524,1706537444939,-208.32699986,0.00024996,2]
[312956525,1706537444949,-500.0,0.00024996,2]
[312956526,1706537444958,-500.0,0.00024996,2]
[312956527,1706537444967,-500.0,0.00024996,2]
[312956528,1706537444976,-500.0,0.00024996,2]
[312956529,1706537444985,-500.0,0.00024996,2]
[312956530,1706537444996,-500.0,0.00024996,2]
[312956531,1706537445005,-500.0,0.00024996,2]
[312956532,1706537445016,-500.0,0.00024996,2]
[312956533,1706537445026,-500.0,0.00024996,2]
[312956534,1706537445036,-500.0,0.00024996,2]
[312956535,1706537445046,-500.0,0.00024996,2]
[312956536,1706537445056,-500.0,0.00024996,2]
[312956537,1706537445066,-500.0,0.00024996,2]
[312956538,1706537445077,-500.0,0.00024996,2]
[312956539,1706537445088,-500.0,0.00024996,2]
[312956540,1706537445097,-500.0,0.00024996,2]
[312956541,1706537445106,-500.0,0.00024996,2]
[312956542,1706537445116,-500.0,0.00024996,2]
[312956543,1706537445127,-500.0,0.00024996,2]
[312956544,1706537445136,-500.0,0.00024996,2]
[312956545,1706537445145,-500.0,0.00024996,2]
[312956546,1706537445154,-500.0,0.00024996,2]
[312956547,1706537445163,-500.0,0.00024996,2]
[312956548,1706537445172,-500.0,0.00024996,2]
[312956549,1706537445181,-500.0,0.00024996,2]
[312956550,1706537445190,-500.0,0.00024996,2]
[312956551,1706537445199,-500.0,0.00024996,2]
[312956552,1706537445208,-500.0,0.00024996,2]
[312956553,1706537445218,-500.0,0.00024996,2]
[312956554,1706537445227,-500.0,0.00024996,2]
[312956555,1706537445236,-500.0,0.00024996,2]
[312956556,1706537445244,-500.0,0.00024996,2]
[312956557,1706537445253,-500.0,0.00024996,2]
[312956558,1706537445262,-500.0,0.00024996,2]
[312956559,1706537445271,-500.0,0.00024996,2]
[312956560,1706537445280,-500.0,0.00024996,2]
[312956561,1706537445290,-500.0,0.00024996,2]
[312956562,1706537445300,-500.0,0.00024996,2]
[312956563,1706537445309,-500.0,0.00024996,2]
[312956564,1706537445318,-500.0,0.00024996,2]
[312956565,1706537445327,-500.0,0.00024996,2]
[312956566,1706537445336,-500.0,0.00024996,2]
[312956567,1706537445345,-500.0,0.00024996,2]
[312956568,1706537445354,-500.0,0.00024996,2]
[312956569,1706537445363,-500.0,0.00024996,2]
[312956570,1706537445372,-500.0,0.00024996,2]
[312956571,1706537445381,-500.0,0.00024996,2]
[312956572,1706537445390,-500.0,0.00024996,2]
[312956573,1706537445399,-500.0,0.00024996,2]
[312956574,1706537445408,-500.0,0.00024996,2]
[312956575,1706537445418,-500.0,0.00024996,2]
[312956576,1706537445427,-500.0,0.00024996,2]
[312956577,1706537445436,-500.0,0.00024996,2]
[312956578,1706537445445,-500.0,0.00024996,2]
[312956579,1706537445454,-500.0,0.00024996,2]
[312956580,1706537445463,-500.0,0.00024996,2]
[312956581,1706537445472,-435.84363268,0.00024996,2]
[312956582,1706537445481,-500.0,0.00024996,2]
[312956583,1706537445490,-500.0,0.00024996,2]
[312956584,1706537445500,-500.0,0.00024996,2]
[312956585,1706537445510,-500.0,0.00024996,2]
[312956586,1706537445519,-500.0,0.00024996,2]
[312956587,1706537445528,-407.63001676,0.00024996,2]
[312956588,1706537445538,-500.0,0.00024996,2]
[312956589,1706537445547,-272.59010519,0.00024997,2]
[312956590,1706537445556,-1752.08360007,0.00024997,2]
[312956591,1706537445565,-4017.99473319,0.00024997,2]
[312956592,1706537445574,-471.05101678,0.00024997,2]
[312956593,1706537445583,-3921.59583547,0.00024997,2]
[312956594,1706537445592,-787.13039263,0.00024997,2]
[312956595,1706537445602,-1248.57303409,0.00024997,2]
[312956596,1706537445611,-261.54064984,0.00024997,2]
[312956597,1706537445620,-353.88162803,0.00024997,2]
[312956598,1706537445629,-158.33700462,0.00024997,2]
[312956599,1706537445639,-155.01705188,0.00024998,2]
[312956600,1706537445648,-155.31763158,0.00024998,2]
[312956601,1706537445657,-563.68717934,0.00024998,2]
[312956602,1706537445666,-155.56010326,0.00024998,2]
[312956603,1706537445676,-155.45334946,0.00024998,2]
[312956604,1706537445685,-158.74528164,0.00024998,2]
[312956605,1706537445694,-2104.43014892,0.00024998,2]
[312956606,1706537445703,-155.499356,0.00024998,2]
[312956607,1706537445713,-2403.99615183,0.00024999,2]
[312956608,1706537445724,-850.88910275,0.00025,2]
[312956609,1706537445734,-4729.25513018,0.00025,2]
[312956610,1706537445743,-680.86891106,0.00025,2]
[312956611,1706537445752,-1828.7489345,0.00025,2]
[312956612,1706537445761,-7652.00570539,0.00025,2]
[312956613,1706537445771,-155.00155002,0.00025,2]
[312956614,1706537445780,-290372.90158247,0.00025,2]
[312956615,1706537445790,-210.17134403,0.00025,2]
[312956616,1706537445801,-155.7973515,0.00025,2]
[312956617,1706537445811,-155.13662063,0.00025,2]
[312956618,1706537445821,-295.60605155,0.00025,2]
[312956620,1706537445830,-2040.44858742,0.00025,2]
[312956622,1706537445839,-500.0,0.00025,2]
[312956624,1706537445848,-242.0047741,0.00025,2]
[312956625,1706537445857,-2617.7133281,0.00025,2]
[312956629,1706537445867,-2617.7133281,0.00025,2]
[312956632,1706537445876,-2617.7133281,0.00025,2]
[312956633,1706537445886,-2617.7133281,0.00025,2]
[312956635,1706537445896,-2617.7133281,0.00025,2]
[312956637,1706537445906,-2617.7133281,0.00025,2]
[312956639,1706537445915,-2617.7133281,0.00025,2]
[312956643,1706537445925,-2617.7133281,0.00025,2]
[312956646,1706537445934,-2617.7133281,0.00025,2]
[312956648,1706537445944,-2617.7133281,0.00025,2]
[312956650,1706537445954,-1009.0,0.00025,2]
[312956652,1706537445963,-245.615834,0.00025,2]
[312956654,1706537445971,-153.0,0.00025205,2]
[312956656,1706537445980,-153.0,0.00025205,2]
[312956658,1706537445989,-153.0,0.00025205,2]
[312956660,1706537445998,-153.0,0.00025205,2]
[312956662,1706537446007,-153.0,0.00025205,2]
[312956664,1706537446016,-6378.32462282,0.00025297,2]
[312956666,1706537446025,-5000.0,0.00025473,2]
[312956668,1706537446034,-200.0,0.00025479,2]
[312956670,1706537446044,-1618.40419475,0.000255,6]
[312956672,1706537446053,-9437.7,0.000255,2]
[312956673,1706537446062,-200.0,0.000255,4]
[312956674,1706537446070,-300.0,0.000257,12]
[312956675,1706537446081,-306.0,0.00025753,2]
[312956676,1706537446092,-500.0,0.00025999,2]
[312956677,1706537446101,-517.77215708,0.00025999,2]
[312956678,1706537446111,-465.10363133,0.00025999,2]
[312956679,1706537446120,-184.13247089,0.00025999,2]
[312956680,1706537446130,-255.70591762,0.00025999,2]
[312956681,1706537446139,-4234.13788593,0.00026,2]
[312956682,1706537446148,-151.0,0.00026227,2]
[312956683,1706537446157,-1000.0,0.00026388,3]
[312956684,1706537446165,-555.026103,0.00026484,2]
[312956685,1706537446175,-150.0,0.0002673,2]
[312956686,1706537446184,-5000.0,0.00026884,2]
[312956687,1706537446195,-44620.86002437,0.00027,3]
[312956688,1706537446204,-300.0,0.000272,13]
[312956689,1706537446213,-286.945255,0.00027231,2]
[312956690,1706537446222,-155.0,0.00027397,2]
[312956691,1706537446300,-500.0,0.00027397,2]
[312956692,1706537446309,-500.0,0.00027397,2]
[312956693,1706537446318,-150.1,0.00027397,2]
[312956694,1706537446328,-3846.72,0.00027397,3]
[312956695,1706537446337,-6088.05,0.00027397,3]
[312956696,1706537446346,-5073.37,0.00027397,3]
[312956697,1706537446355,-18536.38220019,0.000275,2]
[312956698,1706537446364,-1306.76,0.000275,2]
[312956699,1706537446373,-500.0,0.00027534,2]
[312956700,1706537446383,-151.0,0.00027649,2]
[312956701,1706537446392,-290.33120677,0.00027671,2]
[312956702,1706537446401,-555.52015091,0.00027671,2]
[312956703,1706537446410,-15814.38999995,0.00027855,2]
[312956704,1706537446419,-2343.69375946,0.00027869,3]
[312956747,1706538633565,-155.0,0.00015987,2]
[312956748,1706538633575,-155.0,0.00015988,2]
[312956749,1706538633585,-3204.55635267,0.00015998,2]
[312956750,1706538633594,-261.0874781,0.00015998,2]
[312956751,1706538633605,-295.12770733,0.00015999,2]
[312956752,1706538633615,-261.11789423,0.00015999,2]
[312956753,1706538633624,-359.65626203,0.00015999,2]
[312956767,1706538638400,-1161.23988312,0.00015999,2]
[312956769,1706538638412,-276.04317146,0.00015999,2]
[312956770,1706538638422,-279.96972514,0.00015999,2]
[312956771,1706538638651,-360.61258325,0.00015999,2]
[312956772,1706538638661,-1292.56008112,0.00016277,2]
[312956773,1706538638670,-628.90427611,0.00016278,2]
[312956774,1706538638680,-500.0,0.00016278,2]
[312956775,1706538638690,-266.810264,0.00018976,2]
[312956776,1706538638700,-4204.6595037,0.00020458,2]
[312956777,1706538638710,-2902.452424,0.00020957,2]
[312956778,1706538638718,-270.942689,0.00021012,2]
[312956779,1706538638728,-1836.85339483,0.00022758,2]
[312956780,1706538638737,-4452.2578058,0.00024243,2]
[312956781,1706538638752,-5499.91005355,0.00024243,2]
[312956782,1706538638761,-5000.0,0.00024244,5]
[312956783,1706538638771,-165.20498289,0.00024327,2]
[312956784,1706538638781,-444.020882,0.00024658,2]
[312956785,1706538638791,-201.52824782,0.000249,2]
[312956786,1706538638800,-499.11435295,0.0002496,5]
[312956787,1706538638810,-2132.21,0.0002499,3]
[312956788,1706538638821,-4065.98,0.0002499,3]
[312956789,1706538638830,-3388.32,0.0002499,3]
[312956790,1706538638839,-309.4489101,0.00024993,2]
[312956791,1706538638849,-155.29386995,0.00024994,2]
[312956792,1706538638858,-163.03953736,0.00024994,2]
[312956793,1706538638868,-177.56626754,0.00024995,2]